bitfinex/quotes_SOLUSD_20250617
["timestamp","ask_amount","ask_price","bid_price","bid_amount"]
[1750186965208,11.4932383,148.82,148.78,8.32]
[1750186965393,11.4932383,148.82,148.78,11.4932383]
[1750186965725,11.4932383,148.82,148.76,6.72223716]
[1750186966027,11.4932383,148.82,148.78,11.4932383]
[1750186966193,6.7190697,148.84,148.79,18.21409527]
[1750186966194,11.4932383,148.83,148.79,18.21409527]
[1750186966397,8.1154,148.88,148.82,11.4932383]
[1750186966613,1.5694,148.88,148.79,23.52306141]
[1750186966925,13.0626383,148.88,148.84,11.4932383]
[1750186967106,1.5694,148.88,148.79,23.52306141]
[1750186967302,13.0626383,148.88,148.79,23.52306141]
[1750186967502,13.0626383,148.88,148.85,11.4932383]
[1750186967503,1.5694,148.88,148.85,11.4932383]
[1750186968295,1.5694,148.88,148.85,18.21125869]
[1750186969109,1.5694,148.88,148.86,11.4932383]
[1750186970122,1.5694,148.88,148.85,6.71802039]
[1750186970294,6.71510851,148.92,148.86,18.21091444]
[1750186970494,11.4932383,148.91,148.86,6.71767614]
[1750186970718,11.4932383,148.9,148.85,6.71813942]
[1750186970927,11.4932383,148.91,148.85,6.71813942]
[1750186971303,11.4932383,148.9,148.86,11.4932383]
[1750186971523,6.71510851,148.92,148.86,11.4932383]
[1750186971728,1.8094,148.93,148.85,23.51357106]
[1750186972230,1.8094,148.93,148.89,11.4932383]
[1750186972428,13.3026383,148.93,148.88,6.71658023]
[1750186972604,6.89464804,148.93,148.84,34.32]
[1750186972805,11.6732383,148.93,148.89,11.4932383]
[1750186973015,0.18,148.93,148.91,11.4932383]
[1750186973637,0.18,148.93,148.92,11.4932383]
[1750186974325,0.18,148.93,148.87,26.0]
[1750186974513,0.18,148.93,148.9,11.4932383]
[1750186974715,0.18,148.93,148.91,11.4932383]
[1750186975009,0.18,148.93,148.92,11.4932383]
[1750186975736,0.18,148.93,148.88,6.71681891]
[1750186975913,0.18,148.93,148.91,11.4932383]
[1750186977118,0.18,148.93,148.9,6.71588746]
[1750186977309,0.18,148.93,148.91,11.4932383]
[1750186977622,0.18,148.93,148.9,11.4932383]
[1750186977834,6.89463571,148.93,148.89,11.4932383]
[1750186978413,0.18,148.93,148.9,11.4932383]
[1750186978624,0.18,148.93,148.87,6.7172701]
[1750186978831,0.18,148.93,148.89,11.4932383]
[1750186979022,11.6732383,148.93,148.89,11.4932383]
[1750186979339,6.89457473,148.93,148.85,6.71776757]
[1750186979512,6.89457473,148.93,148.88,11.4932383]
[1750186979703,6.89457473,148.93,148.9,11.4932383]
[1750186979704,0.18,148.93,148.9,11.4932383]
[1750186979909,0.18,148.93,148.92,11.4932383]
[1750186980545,0.18,148.93,148.92,18.20825307]
[1750186980753,0.18,148.93,148.92,11.4932383]
[1750186981139,0.18,148.93,148.92,18.20825307]
[1750186981539,0.18,148.93,148.89,6.71636778]
[1750186981734,0.18,148.93,148.92,11.4932383]
[1750186981939,5.32914505,148.95,148.94,26.0]
[1750186982134,5.32914505,148.95,148.94,37.4932383]
[1750186982356,5.32914505,148.95,148.94,67.63612546]
[1750186982530,5.32914505,148.95,148.94,74.35023852]
[1750186982734,1.5773,149.08,148.94,91.13552118]
[1750186982937,8.14134613,149.06,148.94,49.49939572]
[1750186983337,11.4932383,149.0,148.94,32.71411306]
[1750186983561,11.4932383,149.01,148.96,11.4932383]
[1750186983750,11.4932383,149.01,148.94,32.71411306]
[1750186984057,11.4932383,149.01,148.97,11.4932383]
[1750186984291,11.4932383,149.02,148.98,11.4932383]
[1750186984463,24.91311588,149.06,148.94,32.71411306]
[1750186984759,11.4932383,149.01,148.97,11.4932383]
[1750186984948,11.4932383,149.01,148.94,32.71411306]
[1750186985261,11.4932383,149.01,148.97,11.4932383]
[1750186986274,11.4932383,149.0,148.96,11.4932383]
[1750186986854,11.4932383,148.99,148.93,6.71456388]
[1750186987164,11.4932383,148.99,148.95,11.4932383]
[1750186987367,11.4932383,148.99,148.93,6.71456388]
[1750186987665,1.5615,149.0,148.95,11.4932383]
[1750186987857,1.5615,149.0,148.93,6.71456388]
[1750186988161,11.4932383,148.99,148.95,11.4932383]
[1750186988378,17.8297383,149.03,148.98,11.4932383]
[1750186988540,11.4932383,149.02,148.98,18.20524571]
[1750186988739,1.6099,149.04,149.01,11.4932383]
[1750186989456,13.1031383,149.04,148.99,11.4932383]
[1750186989653,11.4932383,149.02,148.98,18.20524571]
[1750186989969,1.6099,149.04,148.98,6.71200741]
[1750186990153,8.14139488,149.06,148.98,23.49278335]
[1750186990359,11.4932383,149.04,149.0,11.4932383]
[1750186990567,18.2031049,149.04,148.96,6.7132116]
[1750186990772,11.4932383,149.02,148.98,11.4932383]
[1750186990983,6.7098666,149.04,148.96,6.7132116]
[1750186990984,6.7098666,149.04,148.99,11.4932383]
[1750186991180,11.4932383,149.03,148.99,11.4932383]
[1750186991557,11.4932383,149.03,148.98,11.4932383]
[1750186991886,11.4932383,149.03,148.99,11.4932383]
[1750186992047,11.4932383,149.01,148.97,11.4932383]
[1750186992386,28.40987101,149.05,148.97,11.4932383]
[1750186992387,4.92781801,149.04,148.97,11.4932383]
[1750186992571,11.4932383,149.01,148.96,6.7132116]
[1750186992745,11.4932383,149.01,148.97,11.4932383]
[1750186993063,16.42105631,149.03,148.96,6.7132116]
[1750186993264,11.4932383,149.01,148.97,11.4932383]
[1750186993468,11.4932383,149.01,148.96,6.7132116]
[1750186993660,11.4932383,149.0,148.96,11.4932383]
[1750186993858,18.2046705,149.0,148.94,6.71411306]
[1750186994167,4.96163762,148.99,148.95,11.4932383]
[1750186994370,22.92660212,149.03,148.95,11.4932383]
[1750186994587,4.96163471,149.02,148.95,11.4932383]
[1750186994876,4.96163471,149.01,148.96,11.4932383]
[1750186995041,4.96163471,149.0,148.96,11.4932383]
[1750186995365,4.96163471,148.99,148.97,11.4932383]
[1750186995568,6.15137915,149.03,148.94,23.49939572]
[1750186995748,4.96542356,149.02,148.94,23.49939572]
[1750186995949,16.45866186,149.01,148.97,11.4932383]
[1750186996148,4.96542356,149.0,148.97,11.4932383]
[1750186996349,4.96542356,148.99,148.94,23.49939572]
[1750186996571,12.86149359,149.03,148.98,11.4932383]
[1750186996767,16.46323977,149.02,148.94,23.49939572]
[1750186996964,4.97000147,149.01,148.97,6.71241971]
[1750186997169,4.97000147,149.0,148.98,11.4932383]
[1750186997467,4.97000147,148.99,148.97,11.4932383]
[1750186997663,4.97000147,148.98,148.96,11.4932383]
[1750186997975,4.9738093,148.97,148.96,11.4932383]
[1750186998174,4.9738093,148.97,148.89,25.11085461]
[1750186998175,4.97336327,148.97,148.89,25.11085461]
[1750186998477,1.5872,149.0,148.94,11.4932383]
[1750186998478,4.97382678,148.96,148.94,11.4932383]
[1750186998770,11.4932383,148.98,148.94,11.4932383]
[1750186998969,4.97426207,148.97,148.94,11.4932383]
[1750186999179,4.97426207,148.96,148.94,11.4932383]
[1750186999350,18.20573182,148.98,148.94,11.4932383]
[1750186999551,4.97363266,148.97,148.94,11.4932383]
[1750186999772,4.97363266,148.96,148.94,11.4932383]
[1750186999973,18.20573182,148.98,148.94,11.4932383]
[1750187000171,4.97404078,148.97,148.91,6.71546571]
[1750187000366,4.97404078,148.96,148.91,6.71546571]
[1750187000562,11.4932383,148.94,148.89,15.03621294]
[1750187000777,11.4932383,148.92,148.89,15.03621294]
[1750187001072,6.71417587,148.94,148.89,26.52945124]
[1750187001276,4.97561994,148.93,148.89,8.32]
[1750187001475,16.46885824,148.92,148.89,8.32]
[1750187001665,11.4932383,148.92,148.89,8.32]
[1750187001858,11.4932383,148.92,148.87,6.71708428]
[1750187001859,11.4932383,148.9,148.85,6.71817265]
[1750187002065,4.97773519,148.89,148.84,6.71850082]
[1750187002249,6.58696157,148.91,148.83,8.24]
[1750187002453,11.4932383,148.87,148.83,8.24]
[1750187002771,11.4932383,148.88,148.84,11.4932383]
[1750187003074,6.58696157,148.91,148.85,11.4932383]
[1750187003075,11.4932383,148.89,148.85,11.4932383]
[1750187003293,4.9785657,148.88,148.84,6.71825794]
[1750187003508,11.4932383,148.85,148.78,6.72133351]
[1750187003774,11.4932383,148.83,148.77,31.40608476]
[1750187003975,1.554,148.84,148.77,31.40608476]
[1750187004352,1.554,148.84,148.81,11.4932383]
[1750187004559,1.554,148.84,148.77,42.89932306]
[1750187005478,1.554,148.84,148.81,11.4932383]
[1750187005661,13.0472383,148.84,148.77,31.40608476]
[1750187005867,13.0472383,148.84,148.8,11.4932383]
[1750187006264,1.9576,148.84,148.81,11.4932383]
[1750187006471,1.9576,148.84,148.77,31.40608476]
[1750187006665,11.4932383,148.83,148.79,11.4932383]
[1750187007064,0.4036,148.84,148.82,11.4932383]
[1750187007273,0.4036,148.84,148.83,11.4932383]
[1750187008065,0.4036,148.84,148.82,26.0]
[1750187008301,0.4036,148.84,148.83,11.4932383]
[1750187009061,0.4036,148.84,148.83,18.21231375]
[1750187013093,1.6602,148.94,148.86,26.0]
[1750187013294,1.6602,148.94,148.92,11.4932383]
[1750187013608,1.6602,148.94,148.91,11.4932383]
[1750187013884,13.1534383,148.94,148.9,11.4932383]
[1750187014088,11.4932383,148.93,148.89,11.4932383]
[1750187014270,11.4932383,148.93,148.87,31.39044535]
[1750187014271,11.4932383,148.92,148.87,14.5972701]
[1750187014465,13.1534383,148.94,148.9,11.4932383]
[1750187015170,11.4932383,148.93,148.87,31.39044535]
[1750187015372,11.4932383,148.93,148.89,11.4932383]
[1750187015887,1.6602,148.94,148.9,11.4932383]
[1750187016070,1.6602,148.94,148.92,11.4932383]
[1750187016261,1.6602,148.94,148.87,64.97679585]
[1750187016465,1.6602,148.94,148.93,11.4932383]
[1750187016865,1.5683,148.98,148.93,11.4932383]
[1750187017095,1.5683,148.98,148.95,11.4932383]
[1750187017373,1.5683,148.98,148.96,6.7132116]
[1750187018103,1.5683,148.98,148.95,18.20675343]
[1750187018603,1.5683,148.98,148.95,6.71351513]
[1750187018816,1.5683,148.98,148.94,11.4932383]
[1750187019377,1.5683,148.98,148.94,18.20690794]
[1750187019593,13.0615383,148.98,148.91,42.78866429]
[1750187019794,1.5683,148.98,148.94,11.4932383]
[1750187020003,13.0615383,148.98,148.94,11.4932383]
[1750187020211,1.5683,148.98,148.95,11.4932383]
[1750187020383,1.5683,148.98,148.96,11.4932383]
[1750187020590,1.5683,148.98,148.92,23.5025517]
[1750187020790,1.5683,148.98,148.96,11.4932383]
[1750187021294,1.5683,148.98,148.96,18.20623119]
[1750187021702,1.5683,148.98,148.96,11.4932383]
[1750187022208,1.5683,148.98,148.95,6.71350904]
[1750187022507,1.5683,148.98,148.95,18.20674734]
[1750187023101,1.5683,148.98,148.95,6.71350904]
[1750187023298,1.5683,148.98,148.95,11.4932383]
[1750187023479,13.0615383,148.98,148.92,23.5025517]
[1750187023682,1.5683,148.98,148.94,11.4932383]
[1750187023887,13.0615383,148.98,148.94,11.4932383]
[1750187024088,13.0615383,148.98,148.92,23.5025517]
[1750187024294,11.4932383,148.97,148.92,18.20825307]
[1750187024915,1.5683,148.98,148.93,11.4932383]
[1750187025100,11.4932383,148.97,148.93,11.4932383]
[1750187025299,1.5683,148.98,148.95,11.4932383]
[1750187025687,1.5683,148.98,148.96,11.4932383]
[1750187025885,1.5683,148.98,148.9,57.08529213]
[1750187026091,1.5683,148.98,148.96,11.4932383]
[1750187026285,1.5683,148.98,148.95,11.4932383]
[1750187026500,1.6477,149.03,148.97,11.4932383]
[1750187026717,1.6477,149.03,149.02,11.4932383]
[1750187026906,1.6477,149.03,149.01,11.4932383]
[1750187027219,1.6477,149.03,148.9,23.50570852]
[1750187027519,1.6477,149.03,148.91,33.88]
[1750187027520,11.4932383,149.0,148.91,33.88]
[1750187027815,11.4932383,148.99,148.91,33.88]
[1750187028113,11.4932383,148.99,148.95,11.4932383]
[1750187028613,11.4932383,148.98,148.93,11.4932383]
[1750187028813,11.4932383,148.98,148.94,11.4932383]
[1750187028997,6.2326,149.0,148.94,11.4932383]
[1750187029196,11.4932383,148.98,148.94,11.4932383]
[1750187029396,18.20509815,148.99,148.94,18.20733135]
[1750187029630,11.4932383,148.98,148.94,18.20733135]
[1750187029803,11.4932383,148.97,148.93,11.4932383]
[1750187030007,11.4932383,148.98,148.93,11.4932383]
[1750187030225,11.4932383,148.97,148.92,6.71501477]
[1750187030401,6.71185985,148.99,148.91,26.08855797]
[1750187030731,11.4932383,148.96,148.92,11.4932383]
[1750187030934,11.4932383,148.96,148.91,14.59531967]
[1750187031103,11.4932383,148.96,148.91,26.08855797]
[1750187031429,23.49150949,148.99,148.92,11.4932383]
[1750187031593,11.4932383,148.96,148.92,18.20823182]
[1750187031790,6.2326,149.0,148.95,11.4932383]
[1750187032034,6.2326,149.0,148.96,11.4932383]
[1750187032200,17.7258383,149.0,148.95,11.4932383]
[1750187033521,6.71112451,149.01,148.92,23.50253045]
[1750187033522,11.4932383,149.02,148.92,49.50253045]
[1750187033723,11.4932383,149.02,148.98,11.4932383]
[1750187034224,11.4932383,149.01,148.97,11.4932383]
[1750187034390,11.4932383,149.01,148.97,18.20557968]
[1750187036503,8.35804337,149.03,148.93,18.20780218]
[1750187036504,11.4932383,148.98,148.93,18.20780218]
[1750187036867,11.4932383,148.99,148.95,11.4932383]
[1750187037013,11.4932383,149.0,148.96,11.4932383]
[1750187037213,6.710557,149.02,148.96,11.4932383]
[1750187037523,6.710557,149.02,148.96,6.71296115]
[1750187037829,6.710557,149.02,148.96,18.20619945]
[1750187038010,6.710557,149.02,148.96,6.71296115]
[1750187038923,11.4932383,148.99,148.95,11.4932383]
[1750187040030,11.4932383,148.99,148.96,6.7132116]
[1750187040244,11.4932383,148.99,148.91,33.88]
[1750187040527,23.62912996,149.02,148.92,6.71501477]
[1750187040743,11.4932383,148.97,148.93,11.4932383]
[1750187040907,11.4932383,148.97,148.92,6.71501477]
[1750187041109,11.4932383,148.97,148.93,11.4932383]
[1750187041428,11.4932383,148.98,148.93,6.71440629]
[1750187041621,11.4932383,148.97,148.93,18.20764459]
[1750187041818,11.4932383,148.97,148.92,18.20807212]
[1750187042037,11.4932383,148.96,148.92,11.4932383]
[1750187043313,11.4932383,148.96,148.91,14.59529801]
[1750187043629,6.71275888,148.98,148.92,11.4932383]
[1750187043936,11.4932383,148.98,148.93,11.4932383]
[1750187044308,6.71095899,149.01,148.93,11.4932383]
[1750187044505,6.71095899,149.01,148.91,31.3839623]
[1750187044732,11.4932383,148.98,148.94,11.4932383]
[1750187045038,11.4932383,148.97,148.91,14.59529801]
[1750187045217,11.4932383,148.96,148.92,11.4932383]
[1750187045411,6.71228565,148.99,148.92,11.4932383]
[1750187045720,11.4932383,148.97,148.93,11.4932383]
[1750187045931,6.71228565,148.99,148.93,11.4932383]
[1750187046119,11.4932383,148.97,148.93,11.4932383]
[1750187046809,11.4932383,148.97,148.91,40.59529801]
[1750187047009,11.4932383,148.97,148.93,11.4932383]
[1750187047224,11.4932383,148.98,148.91,57.3839623]
[1750187047436,11.4932383,148.98,148.93,11.4932383]
[1750187047614,11.4932383,148.98,148.94,11.4932383]
[1750187047810,6.71161438,149.0,148.94,11.4932383]
[1750187048010,13.1409383,149.03,148.94,26.0]
[1750187048236,0.14216157,149.02,148.91,57.3839623]
[1750187048439,11.4932383,148.98,148.94,11.4932383]
[1750187048824,0.14216157,149.02,148.94,11.4932383]
[1750187049033,8.35783671,149.03,148.91,57.3839623]
[1750187049245,11.4932383,149.02,148.98,11.4932383]
[1750187049550,18.20388803,149.02,148.97,18.205901]
[1750187049939,11.4932383,149.01,148.97,18.205901]
[1750187050248,11.4932383,149.01,148.96,6.71309142]
[1750187050630,11.4932383,149.0,148.94,6.71411306]
[1750187050956,6.71064973,149.02,148.95,11.4932383]
[1750187051156,11.69992382,149.02,148.97,11.4932383]
[1750187051326,11.69992382,149.02,148.97,18.2059227]
[1750187051327,6.71064973,149.02,148.97,18.2059227]
[1750187051527,167.75111566,149.03,148.98,11.4932383]
[1750187051936,156.25787736,149.03,148.98,11.4932383]
[1750187052162,149.5477,149.03,149.0,11.4932383]
[1750187052323,149.5477,149.03,149.01,11.4932383]
[1750187052522,149.5477,149.03,149.02,11.4932383]
[1750187052750,1.6477,149.03,149.02,11.4932383]
[1750187053125,14.5124996,149.06,149.02,11.4932383]
[1750187053331,3.0192613,149.06,149.02,11.4932383]
[1750187053663,3.0192613,149.06,149.02,18.203638]
[1750187053831,6.4252,149.08,149.02,18.203638]
[1750187053832,5.00323232,149.08,149.02,6.7103997]
[1750187054145,18.20092629,149.09,149.05,11.4932383]
[1750187054355,18.20092629,149.09,149.04,11.4932383]
[1750187054848,11.4932383,149.09,149.05,11.4932383]
[1750187055030,6.70600858,149.12,149.05,11.4932383]
[1750187055226,11.4932383,149.08,149.02,6.71050865]
[1750187055449,18.64964886,149.11,149.04,11.4932383]
[1750187055450,0.14216157,149.1,149.04,11.4932383]
[1750187055644,11.4932383,149.08,149.04,11.4932383]
[1750187056462,6.7055589,149.13,149.07,11.4932383]
[1750187056661,6.70516313,149.14,149.09,11.4932383]
[1750187056961,18.19840143,149.14,149.05,7.54]
[1750187057257,1.5125,149.15,149.12,11.4932383]
[1750187058145,1.5125,149.15,149.05,7.54]
[1750187058146,1.5125,149.15,149.06,18.933972]
[1750187058356,1.5125,149.15,149.08,6.70780788]
[1750187058526,8.21736202,149.15,149.08,6.70780788]
[1750187058730,1.5125,149.15,149.08,6.70780788]
[1750187058929,8.21737444,149.15,149.08,6.70780788]
[1750187059160,11.4932383,149.13,149.06,6.7087079]
[1750187059396,11.4932383,149.1,149.06,18.2019462]
[1750187059661,11.4932383,149.11,149.06,18.2019462]
[1750187059859,11.4932383,149.1,149.06,11.4932383]
[1750187060163,11.4932383,149.08,149.02,6.71019337]
[1750187060332,6.70810679,149.08,149.03,18.6732383]
[1750187060661,11.4932383,149.07,149.03,18.6732383]
[1750187060868,11.4932383,149.07,149.03,25.38308872]
[1750187061154,11.4932383,149.08,149.03,25.38308872]
[1750187061334,11.4932383,149.08,149.04,11.4932383]
[1750187061529,6.70690811,149.1,149.04,11.4932383]
[1750187061771,11.4932383,149.09,149.03,13.88985042]
[1750187061937,11.4932383,149.09,149.04,11.4932383]
[1750187062134,11.4932383,149.07,149.03,7.18]
[1750187062454,11.4932383,149.06,149.03,7.18]
[1750187063054,6.70841965,149.07,148.99,32.3756]
[1750187063055,11.4932383,149.05,149.0,6.71125152]
[1750187063445,11.4932383,149.05,149.01,11.4932383]
[1750187063845,11.4932383,149.04,148.99,13.89179514]
[1750187064160,0.14216157,149.06,148.99,18.6732383]
[1750187064373,18.2033723,149.03,148.99,11.4932383]
[1750187064669,6.710134,149.03,148.99,11.4932383]
[1750187064848,18.2033723,149.03,148.98,60.34]
[1750187065165,6.7087079,149.06,149.0,11.4932383]
[1750187065467,11.4932383,149.04,149.0,11.4932383]
[1750187066064,11.4932383,149.04,148.98,60.34]
[1750187066363,11.4932383,149.03,148.99,11.4932383]
[1750187067474,11.4932383,149.02,148.98,71.8332383]
[1750187067642,6.7098976,149.04,148.96,18.6732383]
[1750187067643,11.4932383,149.0,148.96,18.6732383]
[1750187068051,6.7098976,149.04,148.99,11.4932383]
[1750187068252,6.7098976,149.04,148.96,13.89317182]
[1750187068448,11.4932383,149.03,148.99,11.4932383]
[1750187068859,18.20341006,149.03,148.99,11.4932383]
[1750187069179,18.20341006,149.03,148.96,7.18]
[1750187069180,11.4932383,149.0,148.96,7.18]
[1750187069352,11.4932383,148.97,148.93,18.6732383]
[1750187069748,11.4932383,148.97,148.93,7.18]
[1750187069949,11.4932383,148.96,148.93,7.18]
[1750187070461,11.4932383,148.94,148.93,7.18]
[1750187070642,11.4932383,148.94,148.88,6.71681891]
[1750187070846,11.4932383,148.93,148.88,18.21005721]
[1750187071047,11.4932383,148.93,148.89,11.4932383]
[1750187071276,6.71339158,148.96,148.91,11.4932383]
[1750187071445,1.5717,148.99,148.93,11.4932383]
[1750187071653,11.4932383,148.98,148.93,11.4932383]
[1750187071959,0.28432314,148.97,148.83,30.71676408]
[1750187072169,11.4932383,148.89,148.83,13.91907545]
[1750187072367,11.4932383,148.89,148.84,11.4932383]
[1750187072674,11.4932383,148.89,148.83,25.41227496]
[1750187072675,11.4932383,148.88,148.83,25.41227496]
[1750187073276,11.4932383,148.85,148.82,7.2]
[1750187073468,11.4932383,148.83,148.82,7.2]
[1750187073671,11.4932383,148.84,148.82,7.2]
[1750187074250,11.4932383,148.83,148.82,7.2]
[1750187074767,11.63539987,148.86,148.76,7.2]
[1750187075076,11.4932383,148.81,148.77,18.21489598]
[1750187075766,11.4932383,148.81,148.77,6.72165768]
[1750187075968,11.4932383,148.82,148.77,18.21489598]
[1750187076548,11.4932383,148.82,148.77,6.72165768]
[1750187076748,11.4932383,148.82,148.77,18.21489598]
[1750187077057,11.4932383,148.82,148.77,6.72165768]
[1750187077254,11.4932383,148.79,148.76,13.92222694]
[1750187077445,11.4932383,148.78,148.76,7.2]
[1750187077647,11.4932383,148.78,148.76,13.92217693]
[1750187077849,11.4932383,148.77,148.76,7.2]
[1750187078748,0.14216157,148.82,148.76,13.92214764]
[1750187079253,11.4932383,148.77,148.76,7.2]
[1750187079447,11.4932383,148.77,148.73,6.72359308]
[1750187079647,11.4932383,148.76,148.73,6.72359308]
[1750187079993,11.4932383,148.77,148.73,6.72359308]
[1750187080368,1.6128,148.83,148.76,11.4932383]
[1750187080549,1.6128,148.83,148.73,6.72359308]
[1750187080550,1.6128,148.83,148.78,11.4932383]
[1750187080889,11.4932383,148.82,148.78,11.4932383]
[1750187081186,11.4932383,148.82,148.73,23.5325758]
[1750187081360,11.4932383,148.82,148.77,11.4932383]
[1750187081952,1.6128,148.83,148.77,11.4932383]
[1750187082251,11.4932383,148.81,148.76,11.4932383]
[1750187082466,1.6128,148.83,148.77,11.4932383]
[1750187082666,1.6128,148.83,148.78,6.72133351]
[1750187082976,11.4932383,148.81,148.78,6.72133351]
[1750187083147,1.6128,148.83,148.73,16.80898272]
[1750187083148,8.33189964,148.83,148.74,6.72314105]
[1750187083471,11.4932383,148.8,148.75,11.4932383]
[1750187083777,11.4932383,148.79,148.75,11.4932383]
[1750187084556,6.71957435,148.82,148.73,23.5325758]
[1750187084759,11.4932383,148.79,148.75,11.4932383]
[1750187085073,11.4932383,148.76,148.71,6.72449734]
[1750187085274,11.4932383,148.75,148.71,18.21773564]
[1750187085653,11.4932383,148.72,148.7,7.2]
[1750187085854,0.14216157,148.76,148.7,7.2]
[1750187085855,1.70276157,148.76,148.7,7.2]
[1750187086259,6.72268907,148.75,148.7,7.2]
[1750187086783,11.4932383,148.71,148.7,7.2]
[1750187086979,6.72268907,148.75,148.7,7.2]
[1750187086980,11.4932383,148.72,148.7,7.2]
[1750187087183,11.4932383,148.71,148.7,7.2]
[1750187087784,14.77848893,148.76,148.7,7.2]
[1750187088081,1.70276157,148.76,148.71,11.4932383]
[1750187088288,11.4932383,148.75,148.71,11.4932383]
[1750187088660,11.4932383,148.75,148.72,6.72404518]
[1750187088880,1.5606,148.76,148.72,6.72404518]
[1750187089073,11.4932383,148.75,148.72,6.72404518]
[1750187089418,11.4932383,148.73,148.7,7.2]
[1750187089593,11.4932383,148.71,148.7,7.2]
[1750187090087,11.4932383,148.71,148.67,6.72623737]
[1750187090258,11.4932383,148.71,148.67,18.21947567]
[1750187090457,11.4932383,148.71,148.67,6.72623737]
[1750187090662,13.0538383,148.76,148.7,11.4932383]
[1750187090876,13.0538383,148.76,148.71,18.21773564]
[1750187091287,11.4932383,148.75,148.71,18.21773564]
[1750187091986,11.4932383,148.75,148.71,6.72449734]
[1750187092191,11.4932383,148.75,148.71,11.4932383]
[1750187092388,11.4932383,148.75,148.66,23.54365665]
[1750187092567,1.5606,148.76,148.66,23.54365665]
[1750187092771,1.5606,148.76,148.71,11.4932383]
[1750187092986,11.4932383,148.75,148.71,11.4932383]
[1750187093578,11.4932383,148.75,148.66,57.17745188]
[1750187093782,11.4932383,148.75,148.71,11.4932383]
[1750187094294,11.4932383,148.75,148.72,6.72404518]
[1750187094977,11.4932383,148.75,148.71,18.21757504]
[1750187095593,1.5606,148.76,148.71,18.21757504]
[1750187095784,11.4932383,148.75,148.71,18.21757504]
[1750187095982,11.4932383,148.73,148.71,6.72433674]
[1750187096187,13.0538383,148.76,148.72,11.4932383]
[1750187096490,1.6339,148.8,148.75,11.4932383]
[1750187096668,1.6339,148.8,148.78,11.4932383]
[1750187097083,1.6339,148.8,148.77,11.4932383]
[1750187097897,1.6339,148.8,148.78,11.4932383]
[1750187098190,1.6339,148.8,148.73,23.5325758]
[1750187098495,1.6339,148.8,148.77,11.4932383]
[1750187098695,6.32236157,148.83,148.78,11.4932383]
[1750187098696,11.4932383,148.82,148.78,11.4932383]
[1750187098878,6.1802,148.83,148.78,11.4932383]
[1750187099189,11.4932383,148.83,148.79,11.4932383]
[1750187099692,12.9937383,148.84,148.8,11.4932383]
[1750187099865,1.5005,148.84,148.76,26.0]
[1750187100068,11.4932383,148.86,148.82,11.4932383]
[1750187100313,145.79779318,148.9,148.85,11.4932383]
[1750187100508,145.79779318,148.9,148.83,26.0]
[1750187100509,6.71305776,148.97,148.89,11.4932383]
[1750187100722,11.4932383,148.97,148.88,7.12]
[1750187101011,11.4932383,148.93,148.88,11.4932383]
[1750187101214,11.4932383,148.93,148.86,6.71772134]
[1750187101370,11.4932383,148.9,148.86,6.71772134]
[1750187101582,18.64964886,148.94,148.85,18.21140216]
[1750187101804,11.4932383,148.89,148.85,18.21140216]
[1750187102002,11.4932383,148.89,148.85,11.4932383]
[1750187102516,6.85758686,148.92,148.84,13.83849085]
[1750187102804,11.4932383,148.89,148.84,13.83849085]
[1750187103107,6.85758686,148.92,148.86,16.43356734]
[1750187103304,6.71411306,148.94,148.87,16.43356734]
[1750187103483,6.71380209,148.95,148.84,56.63505091]
[1750187103686,16.43356734,148.94,148.9,16.43356734]
[1750187104095,16.43356734,148.93,148.89,16.43356734]
[1750187104275,0.14216157,148.94,148.87,16.43356734]
[1750187104587,16.43356734,148.91,148.85,6.71817265]
[1750187104787,16.43356734,148.91,148.84,33.12]
[1750187104788,16.43356734,148.88,148.84,7.12]
[1750187105106,0.14216157,148.91,148.84,23.55356734]
[1750187105273,16.43356734,148.88,148.84,23.55356734]
[1750187105594,0.14216157,148.91,148.84,23.55356734]
[1750187105595,16.43356734,148.87,148.84,7.12]
[1750187105798,16.43356734,148.85,148.81,6.71997849]
[1750187106173,16.43356734,148.85,148.8,23.15387176]
[1750187106384,16.43356734,148.85,148.81,16.43356734]
[1750187106697,16.43356734,148.83,148.79,23.55356734]
[1750187106897,16.43356734,148.81,148.76,53.26]
[1750187107071,16.43356734,148.81,148.76,69.69356734]
[1750187107270,16.43356734,148.78,148.72,6.72404518]
[1750187107608,16.43356734,148.75,148.7,6.72494956]
[1750187107803,0.14216157,148.79,148.68,7.12]
[1750187107804,16.43356734,148.71,148.68,7.12]
[1750187108094,19.07613357,148.76,148.68,7.12]
[1750187108308,0.14216157,148.76,148.7,16.43356734]
[1750187108483,16.43356734,148.75,148.7,16.43356734]
[1750187108683,16.43356734,148.75,148.71,16.43356734]
[1750187108881,16.43356734,148.75,148.68,30.66047927]
[1750187109082,16.43356734,148.75,148.7,16.43356734]
[1750187109398,16.43356734,148.74,148.7,16.43356734]